[Event "Titled Tuesday Blitz July 26 Early 2022"]
[White "Melikhov, Evgeny V."]
[Black "Rodchenkov, Sergey D."]
[WhiteFideId "4122046"]
[BlackFideId "4168712"]
[WhiteElo "1995"]
[BlackElo "2293"]
[Result "0-1"]
[Round "09"]
[TimeControl "180+1"]
[Date "2022.07.27"]
[WhiteClock "0:00:03"]
[BlackClock "0:00:06"]

1. d4 {[%clk 0:03:00]}  Nf6 {[%clk 0:02:59]} 2. c4 {[%clk 0:03:00]}  e6 {[%clk 0:03:00]} 3. Nc3 {[%clk 0:03:00]}  Bb4 {[%clk 0:03:00]} 4. Qc2 {[%clk 0:03:00]}  c5 {[%clk 0:02:59]} 5. dxc5 {[%clk 0:03:00]}  O-O {[%clk 0:02:59]} 6. a3 {[%clk 0:02:59]}  Bxc5 {[%clk 0:02:59]} 7. Nf3 {[%clk 0:02:58]}  d5 {[%clk 0:02:55]} 8. cxd5 {[%clk 0:02:53]}  exd5 {[%clk 0:02:52]} 9. e3 {[%clk 0:02:47]}  Nc6 {[%clk 0:02:45]} 10. Nb5 {[%clk 0:02:41]}  Bb6 {[%clk 0:02:28]} 11. Nbd4 {[%clk 0:02:37]}  Bg4 {[%clk 0:02:21]} 12. Be2 {[%clk 0:02:34]}  Rc8 {[%clk 0:02:18]} 13. Qa4 {[%clk 0:02:28]}  Nxd4 {[%clk 0:02:01]} 14. exd4 {[%clk 0:02:19]}  Re8 {[%clk 0:01:55]} 15. Be3 {[%clk 0:02:17]}  Ne4 {[%clk 0:01:44]} 16. O-O {[%clk 0:02:07]}  Qf6 {[%clk 0:01:43]} 17. Rfe1 {[%clk 0:01:59]}  Bc7 {[%clk 0:01:04]} 18. Ne5 {[%clk 0:01:30]}  Bxe2 {[%clk 0:00:54]} 19. Rxe2 {[%clk 0:01:29]}  Bxe5 {[%clk 0:00:47]} 20. dxe5 {[%clk 0:01:29]}  Qxe5 {[%clk 0:00:47]} 21. Qxa7 {[%clk 0:01:17]}  Nc5 {[%clk 0:00:25]} 22. Rae1 {[%clk 0:00:59]}  Qh5 {[%clk 0:00:18]} 23. f3 {[%clk 0:00:52]}  Ne6 {[%clk 0:00:18]} 24. Bf2 {[%clk 0:00:44]}  h6 {[%clk 0:00:18]} 25. Re5 {[%clk 0:00:41]}  Qg6 {[%clk 0:00:18]} 26. Qxb7 {[%clk 0:00:37]}  Rc2 {[%clk 0:00:13]} 27. Qb3 {[%clk 0:00:26]}  Rec8 {[%clk 0:00:07]} 28. Bg3 {[%clk 0:00:21]}  Kh7 {[%clk 0:00:06]} 29. Qxd5 {[%clk 0:00:18]}  Rxg2+ {[%clk 0:00:06]} 30. Kxg2 {[%clk 0:00:18]}  Nf4+ {[%clk 0:00:06]} 31. Kh1 {[%clk 0:00:17]}  Nxd5 {[%clk 0:00:07]} 32. Rxd5 {[%clk 0:00:17]}  Rc2 {[%clk 0:00:06]} 33. Rde5 {[%clk 0:00:16]}  Qc6 {[%clk 0:00:06]} 34. R5e3 {[%clk 0:00:16]}  Rxb2 {[%clk 0:00:06]} 35. Be5 {[%clk 0:00:12]}  Ra2 {[%clk 0:00:06]} 36. Kg1 {[%clk 0:00:05]}  f6 {[%clk 0:00:06]} 37. Bg3 {[%clk 0:00:03]}  Qc4 {[%clk 0:00:06]} 0-1


[Site "https://www.chess.com"]

[Event "Titled Tuesday Blitz July 26 Early 2022"]
[White "Mikhalsky, Vladimir"]
[Black "Al-Tarboush, Ward"]
[WhiteFideId "14144352"]
[BlackFideId "7601450"]
[WhiteElo "2301"]
[BlackElo "2231"]
[Result "1-0"]
[Round "09"]
[TimeControl "180+1"]
[Date "2022.07.27"]
[WhiteClock "0:00:25"]
[BlackClock "0:01:19"]

1. d4 {[%clk 0:02:56]}  d5 {[%clk 0:02:59]} 2. c4 {[%clk 0:02:56]}  c6 {[%clk 0:02:59]} 3. Nf3 {[%clk 0:02:55]}  Nf6 {[%clk 0:02:58]} 4. Nc3 {[%clk 0:02:55]}  dxc4 {[%clk 0:02:57]} 5. a4 {[%clk 0:02:54]}  Bf5 {[%clk 0:02:57]} 6. Ne5 {[%clk 0:02:53]}  Nbd7 {[%clk 0:02:56]} 7. Nxc4 {[%clk 0:02:52]}  Nb6 {[%clk 0:02:55]} 8. e3 {[%clk 0:02:42]}  e6 {[%clk 0:02:50]} 9. a5 {[%clk 0:02:40]}  Nxc4 {[%clk 0:02:50]} 10. Bxc4 {[%clk 0:02:40]}  a6 {[%clk 0:02:49]} 11. O-O {[%clk 0:02:38]}  Bb4 {[%clk 0:02:46]} 12. Bd2 {[%clk 0:02:36]}  O-O {[%clk 0:02:44]} 13. Qb3 {[%clk 0:02:16]}  Bxa5 {[%clk 0:02:43]} 14. Qxb7 {[%clk 0:02:13]}  Rb8 {[%clk 0:02:43]} 15. Qxa6 {[%clk 0:02:09]}  Rxb2 {[%clk 0:02:40]} 16. Qxa5 {[%clk 0:02:07]}  Rxd2 {[%clk 0:02:38]} 17. Nd5 {[%clk 0:01:51]}  Qxa5 {[%clk 0:02:36]} 18. Nxf6+ {[%clk 0:01:50]}  gxf6 {[%clk 0:02:37]} 19. Rxa5 {[%clk 0:01:50]}  Rc2 {[%clk 0:02:34]} 20. Bb3 {[%clk 0:01:47]}  Rc3 {[%clk 0:02:34]} 21. Ba4 {[%clk 0:01:46]}  Ra3 {[%clk 0:02:34]} 22. Rc1 {[%clk 0:01:39]}  Rb8 {[%clk 0:02:33]} 23. h3 {[%clk 0:01:32]}  Kg7 {[%clk 0:02:31]} 24. Rxc6 {[%clk 0:01:27]}  Rb4 {[%clk 0:02:28]} 25. Rca6 {[%clk 0:01:13]}  h6 {[%clk 0:02:28]} 26. Bc6 {[%clk 0:01:09]}  Rc3 {[%clk 0:02:27]} 27. Bf3 {[%clk 0:01:08]}  Rc1+ {[%clk 0:02:22]} 28. Kh2 {[%clk 0:01:08]}  Rb2 {[%clk 0:02:22]} 29. Ra2 {[%clk 0:01:07]}  Rbb1 {[%clk 0:02:20]} 30. Kg3 {[%clk 0:01:06]}  e5 {[%clk 0:02:13]} 31. dxe5 {[%clk 0:01:03]}  fxe5 {[%clk 0:02:14]} 32. R2a5 {[%clk 0:01:01]}  f6 {[%clk 0:02:09]} 33. Ra7+ {[%clk 0:00:56]}  Kg6 {[%clk 0:02:07]} 34. Re7 {[%clk 0:00:57]}  Rb4 {[%clk 0:01:43]} 35. Raa7 {[%clk 0:00:55]}  h5 {[%clk 0:01:37]} 36. Rg7+ {[%clk 0:00:45]}  Kh6 {[%clk 0:01:36]} 37. Rgf7 {[%clk 0:00:45]}  Kg6 {[%clk 0:01:30]} 38. h4 {[%clk 0:00:42]}  Be4 {[%clk 0:01:29]} 39. Rg7+ {[%clk 0:00:36]}  Kf5 {[%clk 0:01:28]} 40. Bxh5 {[%clk 0:00:33]}  Ke6 {[%clk 0:01:26]} 41. Bg4+ {[%clk 0:00:32]}  f5 {[%clk 0:01:23]} 42. Rg6+ {[%clk 0:00:32]}  Kd5 {[%clk 0:01:22]} 43. Ra5+ {[%clk 0:00:32]}  Kc4 {[%clk 0:01:22]} 44. Be2+ {[%clk 0:00:31]}  Kb3 {[%clk 0:01:21]} 45. h5 {[%clk 0:00:30]}  f4+ {[%clk 0:01:20]} 46. exf4 {[%clk 0:00:30]}  exf4+ {[%clk 0:01:21]} 47. Kh2 {[%clk 0:00:28]}  Bxg6 {[%clk 0:01:21]} 48. hxg6 {[%clk 0:00:28]}  Rb6 {[%clk 0:01:21]} 49. Rg5 {[%clk 0:00:28]}  Re1 {[%clk 0:01:19]} 50. g7 {[%clk 0:00:26]}  Rh6+ {[%clk 0:01:19]} 51. Bh5 {[%clk 0:00:25]} 1-0


[Site "https://www.chess.com"]

[Event "Titled Tuesday Blitz July 26 Early 2022"]
[White "Nakamura, Hikaru"]
[Black "Sarana, Alexey"]
[WhiteFideId "2016192"]
[BlackFideId "24133795"]
[WhiteElo "2850"]
[BlackElo "2666"]
[Result "1-0"]
[Round "09"]
[TimeControl "180+1"]
[Date "2022.07.26"]
[WhiteClock "0:00:46"]
[BlackClock "0:00:40"]

1. g3 {[%clk 0:03:00]}  d5 {[%clk 0:02:59]} 2. Bg2 {[%clk 0:03:00]}  g6 {[%clk 0:03:00]} 3. d3 {[%clk 0:02:58]}  Bg7 {[%clk 0:03:00]} 4. Nc3 {[%clk 0:02:59]}  d4 {[%clk 0:02:58]} 5. Ne4 {[%clk 0:02:59]}  Nc6 {[%clk 0:02:58]} 6. Nf3 {[%clk 0:02:56]}  f5 {[%clk 0:02:54]} 7. Nc5 {[%clk 0:02:52]}  Nf6 {[%clk 0:02:52]} 8. O-O {[%clk 0:02:32]}  O-O {[%clk 0:02:52]} 9. c3 {[%clk 0:02:31]}  dxc3 {[%clk 0:02:23]} 10. bxc3 {[%clk 0:02:32]}  Kh8 {[%clk 0:02:18]} 11. Bb2 {[%clk 0:02:22]}  Qd6 {[%clk 0:02:14]} 12. Nb3 {[%clk 0:02:20]}  e5 {[%clk 0:02:14]} 13. a4 {[%clk 0:02:20]}  Rd8 {[%clk 0:02:06]} 14. c4 {[%clk 0:02:17]}  Be6 {[%clk 0:01:59]} 15. Ba3 {[%clk 0:02:08]}  Qd7 {[%clk 0:01:57]} 16. Nc5 {[%clk 0:02:07]}  Qc8 {[%clk 0:01:57]} 17. Nxe5 {[%clk 0:01:23]}  Ne4 {[%clk 0:01:22]} 18. Nxc6 {[%clk 0:01:18]}  bxc6 {[%clk 0:01:23]} 19. Nxe4 {[%clk 0:01:10]}  fxe4 {[%clk 0:01:22]} 20. Bxe4 {[%clk 0:01:11]}  Bxc4 {[%clk 0:01:18]} 21. Rc1 {[%clk 0:01:11]}  Bd5 {[%clk 0:01:18]} 22. Qc2 {[%clk 0:01:06]}  Qh3 {[%clk 0:01:13]} 23. Bxd5 {[%clk 0:00:58]}  Rxd5 {[%clk 0:01:13]} 24. Qxc6 {[%clk 0:00:58]}  Rad8 {[%clk 0:01:09]} 25. Be7 {[%clk 0:00:57]}  Rh5 {[%clk 0:00:49]} 26. Qg2 {[%clk 0:00:55]}  Qxg2+ {[%clk 0:00:42]} 27. Kxg2 {[%clk 0:00:56]}  Rd7 {[%clk 0:00:42]} 28. Bc5 {[%clk 0:00:54]}  a6 {[%clk 0:00:41]} 29. Rc2 {[%clk 0:00:51]}  Bf6 {[%clk 0:00:40]} 30. Rb1 {[%clk 0:00:48]}  Kg7 {[%clk 0:00:41]} 31. Rb8 {[%clk 0:00:47]}  Rhd5 {[%clk 0:00:41]} 32. Rc8 {[%clk 0:00:46]}  Be5 {[%clk 0:00:40]} 33. Ra8 {[%clk 0:00:46]} 1-0


[Site "https://www.chess.com"]

[Event "Titled Tuesday Blitz July 26 Early 2022"]
[White "Navarrete Mendez, Gonzalo Alberto"]
[Black "Large, Peter G"]
[WhiteFideId "5106850"]
[BlackFideId "400866"]
[WhiteElo "2261"]
[BlackElo "2064"]
[Result "1-0"]
[Round "09"]
[TimeControl "180+1"]
[Date "2022.07.27"]
[WhiteClock "0:00:04"]
[BlackClock "0:00:01"]

1. e4 {[%clk 0:03:00]}  c5 {[%clk 0:02:57]} 2. Nf3 {[%clk 0:03:00]}  Nc6 {[%clk 0:02:57]} 3. Nc3 {[%clk 0:03:01]}  d6 {[%clk 0:02:54]} 4. d4 {[%clk 0:03:01]}  cxd4 {[%clk 0:02:54]} 5. Nxd4 {[%clk 0:03:02]}  Nf6 {[%clk 0:02:54]} 6. Bc4 {[%clk 0:03:02]}  e6 {[%clk 0:02:54]} 7. Bb3 {[%clk 0:03:02]}  Be7 {[%clk 0:02:53]} 8. Be3 {[%clk 0:03:02]}  O-O {[%clk 0:02:52]} 9. O-O {[%clk 0:03:03]}  Na5 {[%clk 0:02:51]} 10. f4 {[%clk 0:03:02]}  b6 {[%clk 0:02:51]} 11. e5 {[%clk 0:03:02]}  Ne8 {[%clk 0:02:50]} 12. Qh5 {[%clk 0:02:47]}  Nxb3 {[%clk 0:02:38]} 13. axb3 {[%clk 0:02:47]}  g6 {[%clk 0:02:11]} 14. Qh6 {[%clk 0:02:44]}  Bb7 {[%clk 0:02:11]} 15. Rad1 {[%clk 0:02:31]}  Qc8 {[%clk 0:01:54]} 16. Nf3 {[%clk 0:01:56]}  Qc6 {[%clk 0:01:18]} 17. Rd2 {[%clk 0:01:25]}  Ng7 {[%clk 0:00:52]} 18. Nd4 {[%clk 0:00:31]}  Qe8 {[%clk 0:00:40]} 19. exd6 {[%clk 0:00:16]}  Bxd6 {[%clk 0:00:36]} 20. Qh4 {[%clk 0:00:13]}  Be7 {[%clk 0:00:33]} 21. Qf2 {[%clk 0:00:10]}  Rd8 {[%clk 0:00:30]} 22. Rfd1 {[%clk 0:00:10]}  Bf6 {[%clk 0:00:26]} 23. h3 {[%clk 0:00:09]}  a6 {[%clk 0:00:26]} 24. Nf3 {[%clk 0:00:09]}  Qc6 {[%clk 0:00:22]} 25. Bxb6 {[%clk 0:00:08]}  Rxd2 {[%clk 0:00:21]} 26. Rxd2 {[%clk 0:00:09]}  Nf5 {[%clk 0:00:19]} 27. Bc5 {[%clk 0:00:08]}  Rc8 {[%clk 0:00:18]} 28. Be3 {[%clk 0:00:07]}  Bxc3 {[%clk 0:00:17]} 29. bxc3 {[%clk 0:00:07]}  Qxc3 {[%clk 0:00:17]} 30. Nd4 {[%clk 0:00:07]}  Nxe3 {[%clk 0:00:16]} 31. Rd3 {[%clk 0:00:06]}  Qa1+ {[%clk 0:00:14]} 32. Kh2 {[%clk 0:00:04]}  Nf1+ {[%clk 0:00:13]} 33. Kg1 {[%clk 0:00:03]}  Ng3+ {[%clk 0:00:12]} 34. Kh2 {[%clk 0:00:03]}  Ne4 {[%clk 0:00:12]} 35. Qe3 {[%clk 0:00:03]}  Nf6 {[%clk 0:00:12]} 36. Qe5 {[%clk 0:00:03]}  Qf1 {[%clk 0:00:10]} 37. Nf3 {[%clk 0:00:03]}  Bxf3 {[%clk 0:00:10]} 38. Rxf3 {[%clk 0:00:03]}  Kg7 {[%clk 0:00:09]} 39. Rxf1 {[%clk 0:00:03]}  Rd8 {[%clk 0:00:07]} 40. f5 {[%clk 0:00:03]}  exf5 {[%clk 0:00:06]} 41. Rf2 {[%clk 0:00:02]}  Re8 {[%clk 0:00:06]} 42. Qf4 {[%clk 0:00:02]}  Re4 {[%clk 0:00:06]} 43. Qf3 {[%clk 0:00:03]}  h5 {[%clk 0:00:05]} 44. Qc3 {[%clk 0:00:03]}  h4 {[%clk 0:00:05]} 45. Rd2 {[%clk 0:00:04]}  Re6 {[%clk 0:00:04]} 46. Rd4 {[%clk 0:00:04]}  g5 {[%clk 0:00:03]} 47. Rc4 {[%clk 0:00:04]}  Kg6 {[%clk 0:00:01]} 48. Rc6 {[%clk 0:00:04]} 1-0


[Site "https://www.chess.com"]

[Event "Titled Tuesday Blitz July 26 Early 2022"]
[White "Ozer, Omer Faruk"]
[Black "Shvedova, Alexandra"]
[WhiteFideId "6354564"]
[BlackFideId "54154782"]
[WhiteElo "2050"]
[BlackElo "1896"]
[Result "0-1"]
[Round "09"]
[TimeControl "180+1"]
[Date "2022.07.26"]
[WhiteClock "0:00:21"]
[BlackClock "0:00:05"]

1. e4 {[%clk 0:02:56]}  c5 {[%clk 0:02:59]} 2. Nf3 {[%clk 0:02:55]}  d6 {[%clk 0:03:00]} 3. d4 {[%clk 0:02:55]}  cxd4 {[%clk 0:03:01]} 4. Nxd4 {[%clk 0:02:55]}  Nf6 {[%clk 0:03:01]} 5. Nc3 {[%clk 0:02:56]}  a6 {[%clk 0:03:01]} 6. Nb3 {[%clk 0:02:54]}  e5 {[%clk 0:03:00]} 7. Bg5 {[%clk 0:02:54]}  Be6 {[%clk 0:02:59]} 8. Qd3 {[%clk 0:02:50]}  Nbd7 {[%clk 0:02:57]} 9. O-O-O {[%clk 0:02:50]}  Be7 {[%clk 0:02:56]} 10. Be2 {[%clk 0:02:47]}  b5 {[%clk 0:02:55]} 11. Bxf6 {[%clk 0:02:45]}  Nxf6 {[%clk 0:02:54]} 12. Nd5 {[%clk 0:02:45]}  Bxd5 {[%clk 0:02:48]} 13. exd5 {[%clk 0:02:46]}  O-O {[%clk 0:02:48]} 14. g4 {[%clk 0:02:44]}  Nd7 {[%clk 0:02:39]} 15. Kb1 {[%clk 0:02:43]}  Rc8 {[%clk 0:02:34]} 16. h4 {[%clk 0:02:42]}  Nc5 {[%clk 0:02:26]} 17. Nxc5 {[%clk 0:02:42]}  Rxc5 {[%clk 0:02:27]} 18. g5 {[%clk 0:02:42]}  f5 {[%clk 0:02:17]} 19. gxf6 {[%clk 0:02:40]}  Bxf6 {[%clk 0:02:18]} 20. Bg4 {[%clk 0:02:39]}  Rc4 {[%clk 0:02:09]} 21. Be6+ {[%clk 0:02:38]}  Kh8 {[%clk 0:02:09]} 22. h5 {[%clk 0:02:32]}  Rd4 {[%clk 0:02:04]} 23. Qa3 {[%clk 0:02:28]}  Rxd1+ {[%clk 0:01:56]} 24. Rxd1 {[%clk 0:02:28]}  Qb6 {[%clk 0:01:56]} 25. Qg3 {[%clk 0:02:19]}  Be7 {[%clk 0:01:44]} 26. Rg1 {[%clk 0:02:17]}  Bf6 {[%clk 0:01:41]} 27. Qe3 {[%clk 0:01:55]}  Qxe3 {[%clk 0:01:36]} 28. fxe3 {[%clk 0:01:56]}  Bh4 {[%clk 0:01:36]} 29. e4 {[%clk 0:01:50]}  Rf4 {[%clk 0:01:32]} 30. Bf5 {[%clk 0:01:50]}  Kg8 {[%clk 0:01:25]} 31. c4 {[%clk 0:01:50]}  Bf2 {[%clk 0:01:12]} 32. Rc1 {[%clk 0:01:49]}  Bc5 {[%clk 0:00:58]} 33. cxb5 {[%clk 0:01:48]}  axb5 {[%clk 0:00:58]} 34. a3 {[%clk 0:01:45]}  Rf2 {[%clk 0:00:49]} 35. Bd7 {[%clk 0:01:36]}  b4 {[%clk 0:00:39]} 36. axb4 {[%clk 0:01:35]}  Bxb4 {[%clk 0:00:40]} 37. Be6+ {[%clk 0:01:33]}  Kf8 {[%clk 0:00:40]} 38. Rc8+ {[%clk 0:01:33]}  Ke7 {[%clk 0:00:41]} 39. Rc7+ {[%clk 0:01:33]}  Kf8 {[%clk 0:00:40]} 40. Rb7 {[%clk 0:01:19]}  Bc5 {[%clk 0:00:40]} 41. b4 {[%clk 0:01:19]}  Bd4 {[%clk 0:00:39]} 42. Rd7 {[%clk 0:01:11]}  Rb2+ {[%clk 0:00:37]} 43. Kc1 {[%clk 0:01:11]}  Rxb4 {[%clk 0:00:37]} 44. Rf7+ {[%clk 0:01:09]}  Ke8 {[%clk 0:00:36]} 45. Rxg7 {[%clk 0:01:09]}  Be3+ {[%clk 0:00:35]} 46. Kc2 {[%clk 0:01:10]}  h6 {[%clk 0:00:31]} 47. Bf5 {[%clk 0:01:09]}  Bg5 {[%clk 0:00:28]} 48. Rg6 {[%clk 0:01:06]}  Rb6 {[%clk 0:00:27]} 49. Kc3 {[%clk 0:01:06]}  Ke7 {[%clk 0:00:26]} 50. Kc4 {[%clk 0:01:05]}  Kf7 {[%clk 0:00:23]} 51. Be6+ {[%clk 0:01:05]}  Ke7 {[%clk 0:00:22]} 52. Rg7+ {[%clk 0:01:05]}  Ke8 {[%clk 0:00:21]} 53. Rc7 {[%clk 0:01:01]}  Be7 {[%clk 0:00:15]} 54. Rc8+ {[%clk 0:00:56]}  Bd8 {[%clk 0:00:15]} 55. Ra8 {[%clk 0:00:55]}  Ke7 {[%clk 0:00:14]} 56. Ra7+ {[%clk 0:00:55]}  Ke8 {[%clk 0:00:14]} 57. Bd7+ {[%clk 0:00:48]}  Ke7 {[%clk 0:00:14]} 58. Bb5+ {[%clk 0:00:47]}  Kf6 {[%clk 0:00:13]} 59. Rd7 {[%clk 0:00:46]}  Be7 {[%clk 0:00:13]} 60. Kb4 {[%clk 0:00:46]}  Rb8 {[%clk 0:00:12]} 61. Ka5 {[%clk 0:00:45]}  Ra8+ {[%clk 0:00:12]} 62. Kb6 {[%clk 0:00:45]}  Rb8+ {[%clk 0:00:12]} 63. Kc6 {[%clk 0:00:45]}  Rc8+ {[%clk 0:00:12]} 64. Kb7 {[%clk 0:00:45]}  Rc1 {[%clk 0:00:11]} 65. Bc6 {[%clk 0:00:44]}  Rb1+ {[%clk 0:00:11]} 66. Kc7 {[%clk 0:00:43]}  Re1 {[%clk 0:00:11]} 67. Kb6 {[%clk 0:00:38]}  Rxe4 {[%clk 0:00:11]} 68. Ra7 {[%clk 0:00:38]}  Rb4+ {[%clk 0:00:11]} 69. Ka5 {[%clk 0:00:38]}  Rb1 {[%clk 0:00:10]} 70. Ra8 {[%clk 0:00:35]}  e4 {[%clk 0:00:09]} 71. Rh8 {[%clk 0:00:33]}  Kg7 {[%clk 0:00:08]} 72. Re8 {[%clk 0:00:33]}  Kf6 {[%clk 0:00:08]} 73. Rh8 {[%clk 0:00:30]}  Kg7 {[%clk 0:00:08]} 74. Re8 {[%clk 0:00:30]}  Ra1+ {[%clk 0:00:08]} 75. Kb4 {[%clk 0:00:30]}  Ra7 {[%clk 0:00:08]} 76. Kc4 {[%clk 0:00:28]}  e3 {[%clk 0:00:08]} 77. Kd3 {[%clk 0:00:28]}  Bg5 {[%clk 0:00:08]} 78. Re6 {[%clk 0:00:26]}  Ra3+ {[%clk 0:00:09]} 79. Ke2 {[%clk 0:00:26]}  Ra2+ {[%clk 0:00:09]} 80. Kf3 {[%clk 0:00:26]}  Rf2+ {[%clk 0:00:09]} 81. Kg3 {[%clk 0:00:26]}  Rf8 {[%clk 0:00:05]} 82. Rxd6 {[%clk 0:00:21]}  Bf4+ {[%clk 0:00:05]} 0-1


[Site "https://www.chess.com"]

[Event "Titled Tuesday Blitz July 26 Early 2022"]
[White "Pakleza, Zbigniew"]
[Black "Lubbe, Nikolas"]
[WhiteFideId "1119290"]
[BlackFideId "4694031"]
[WhiteElo "2467"]
[BlackElo "2447"]
[Result "0-1"]
[Round "09"]
[TimeControl "180+1"]
[Date "2022.07.26"]
[WhiteClock "0:00:13"]
[BlackClock "0:01:14"]

1. d4 {[%clk 0:03:00]}  d5 {[%clk 0:03:00]} 2. Bf4 {[%clk 0:02:59]}  e6 {[%clk 0:02:59]} 3. e3 {[%clk 0:03:00]}  Bd6 {[%clk 0:02:59]} 4. Bg3 {[%clk 0:03:00]}  Nf6 {[%clk 0:03:00]} 5. Nd2 {[%clk 0:03:00]}  b6 {[%clk 0:02:59]} 6. Ngf3 {[%clk 0:02:59]}  O-O {[%clk 0:02:59]} 7. c3 {[%clk 0:02:59]}  c5 {[%clk 0:02:58]} 8. Ne5 {[%clk 0:02:59]}  Qc7 {[%clk 0:02:56]} 9. f4 {[%clk 0:02:59]}  Ba6 {[%clk 0:02:42]} 10. Bxa6 {[%clk 0:02:58]}  Nxa6 {[%clk 0:02:43]} 11. O-O {[%clk 0:02:59]}  Nb8 {[%clk 0:02:42]} 12. Bh4 {[%clk 0:02:53]}  Be7 {[%clk 0:02:39]} 13. f5 {[%clk 0:02:25]}  Nbd7 {[%clk 0:02:32]} 14. Nxd7 {[%clk 0:02:03]}  Qxd7 {[%clk 0:02:32]} 15. fxe6 {[%clk 0:02:04]}  Qxe6 {[%clk 0:02:31]} 16. Qf3 {[%clk 0:02:03]}  Rae8 {[%clk 0:02:28]} 17. Rae1 {[%clk 0:01:54]}  Ne4 {[%clk 0:02:28]} 18. Nxe4 {[%clk 0:01:53]}  dxe4 {[%clk 0:02:27]} 19. Qf4 {[%clk 0:01:38]}  Bxh4 {[%clk 0:02:27]} 20. Qxh4 {[%clk 0:01:39]}  Qxa2 {[%clk 0:02:27]} 21. Rf2 {[%clk 0:01:32]}  cxd4 {[%clk 0:02:21]} 22. exd4 {[%clk 0:01:29]}  Qd5 {[%clk 0:02:18]} 23. g4 {[%clk 0:01:01]}  f5 {[%clk 0:01:57]} 24. gxf5 {[%clk 0:00:58]}  Rxf5 {[%clk 0:01:58]} 25. Rxf5 {[%clk 0:00:49]}  Qxf5 {[%clk 0:01:59]} 26. Rf1 {[%clk 0:00:42]}  Qg6+ {[%clk 0:01:54]} 27. Qg3 {[%clk 0:00:42]}  Qe6 {[%clk 0:01:48]} 28. Qe3 {[%clk 0:00:37]}  a5 {[%clk 0:01:46]} 29. d5 {[%clk 0:00:22]}  Qxd5 {[%clk 0:01:42]} 30. Qxb6 {[%clk 0:00:22]}  e3 {[%clk 0:01:42]} 31. Qc7 {[%clk 0:00:19]}  e2 {[%clk 0:01:37]} 32. Re1 {[%clk 0:00:19]}  Qd1 {[%clk 0:01:29]} 33. Qg3 {[%clk 0:00:18]}  Rf8 {[%clk 0:01:26]} 34. Kg2 {[%clk 0:00:14]}  h6 {[%clk 0:01:21]} 35. h4 {[%clk 0:00:13]}  Rf1 {[%clk 0:01:14]} 0-1


[Site "https://www.chess.com"]